bitfinex/quotes_SOLUSD_20241231
["timestamp","ask_amount","ask_price","bid_price","bid_amount"]
[1735674911091,31.96604143,193.98,193.96,1.8259003]
[1735674911273,31.96604143,193.97,193.96,1.8259003]
[1735674911582,31.96604143,193.97,193.92,8.12117728]
[1735674911759,8.18915743,193.96,193.92,8.12117728]
[1735674911954,8.18915743,193.96,193.93,1.82669036]
[1735674912355,8.18915743,193.95,193.93,1.82669036]
[1735674912563,8.18915743,193.94,193.93,1.82669036]
[1735674912763,8.18915743,193.94,193.9,8.12117728]
[1735674913192,8.18915743,193.94,193.88,8.18915743]
[1735674913360,8.18915743,193.94,193.91,1.82650801]
[1735674913979,8.18915743,193.94,193.88,8.18915743]
[1735674915363,8.18915743,193.94,193.87,16.31033471]
[1735674915860,8.18915743,193.94,193.87,8.12117728]
[1735674916065,8.18915743,193.93,193.87,8.12117728]
[1735674916382,9.77485743,193.92,193.86,8.12117728]
[1735674916760,9.77485743,193.92,193.85,8.18915743]
[1735674917173,8.18915743,193.91,193.84,29.20733471]
[1735674917361,9.77485743,193.92,193.85,8.18915743]
[1735674919369,8.18915743,193.91,193.84,29.20733471]
[1735674919873,8.18915743,193.91,193.84,16.31033471]
[1735674920074,8.18915743,193.9,193.84,8.12117728]
[1735674920664,8.18915743,193.9,193.83,16.31033471]
[1735674921891,31.96604143,193.89,193.83,8.12117728]
[1735674922801,8.18915743,193.88,193.82,8.18915743]
[1735674923883,9.77485743,193.85,193.8,8.12117728]
[1735674924098,8.18915743,193.84,193.8,8.12117728]
[1735674924587,1.5857,193.85,193.78,21.09005743]
[1735674924790,8.18915743,193.84,193.78,21.09005743]
[1735674925796,8.18915743,193.84,193.77,16.31033471]
[1735674926103,8.18915743,193.83,193.76,16.31033471]
[1735674927073,8.18915743,193.82,193.75,21.09205743]
[1735674928294,8.18915743,193.83,193.76,8.18915743]
[1735674930392,8.18915743,193.82,193.75,8.18915743]
[1735674930600,8.18915743,193.81,193.72,12.9052]
[1735674930906,8.18915743,193.79,193.72,21.09435743]
[1735674931882,8.18915743,193.8,193.73,8.18915743]
[1735674932194,8.18915743,193.82,193.75,8.18915743]
[1735674932393,8.18915743,193.81,193.74,8.18915743]
[1735674933307,8.18915743,193.81,193.72,20.0]
[1735674933607,8.18915743,193.79,193.72,28.18915743]
[1735674933908,23.776884,193.79,193.72,28.18915743]
[1735674934203,23.776884,193.79,193.73,8.18915743]
[1735674935289,8.18915743,193.79,193.72,28.18915743]
[1735674935700,23.776884,193.79,193.72,28.18915743]
[1735674937697,23.776884,193.79,193.73,8.18915743]
[1735674938689,8.18915743,193.79,193.72,28.18915743]
[1735674939706,23.776884,193.79,193.73,8.18915743]
[1735674939886,6.5882,193.81,193.75,8.18915743]
[1735674941202,14.77735743,193.81,193.74,8.18915743]
[1735674950213,6.5882,193.81,193.77,8.18915743]
[1735674950403,1.5857,193.85,193.78,8.18915743]
[1735674950609,1.5857,193.85,193.79,8.18915743]
[1735674950792,1.5857,193.85,193.8,8.18915743]
[1735674951511,1.5857,193.85,193.79,8.18915743]
[1735674952317,9.77485743,193.85,193.78,8.18915743]
[1735674955526,9.77485743,193.85,193.75,8.18915743]
[1735674955527,8.18915743,193.82,193.75,8.18915743]
[1735674956211,8.18915743,193.81,193.74,21.09295743]
[1735674956535,8.18915743,193.77,193.71,12.9056]
[1735674957210,8.18915743,193.75,193.68,12.9077]
[1735674957403,8.18915743,193.74,193.67,8.18915743]
[1735674958338,8.18915743,193.73,193.66,8.18915743]
[1735674958495,8.18915743,193.72,193.65,21.09865743]
[1735674958701,8.18915743,193.73,193.66,8.18915743]
[1735674959214,8.18915743,193.71,193.6,10.22014917]
[1735674959520,8.0989,193.72,193.65,8.18915743]
[1735674959726,8.0989,193.72,193.66,8.18915743]
[1735674960310,16.28805743,193.72,193.65,8.18915743]
[1735674962326,8.0989,193.72,193.65,8.18915743]
[1735674962828,8.18915743,193.71,193.64,21.09915743]
[1735674964409,8.0989,193.72,193.66,8.18915743]
[1735674964611,16.28805743,193.72,193.65,8.18915743]
[1735674965533,8.18915743,193.71,193.64,8.18915743]
[1735674965735,8.18915743,193.7,193.64,8.18915743]
[1735674966237,23.776884,193.69,193.63,8.18915743]
[1735674966427,8.18915743,193.69,193.63,8.18915743]
[1735674966611,8.18915743,193.7,193.64,8.18915743]
[1735674966929,8.18915743,193.71,193.64,8.18915743]
[1735674967334,8.18915743,193.7,193.64,8.18915743]
[1735674967845,16.28805743,193.72,193.65,8.18915743]
[1735674968330,1.5597,193.72,193.7,8.18915743]
[1735674968510,8.0989,193.77,193.71,8.18915743]
[1735674968710,8.0989,193.77,193.72,8.18915743]
[1735674969018,8.0989,193.77,193.63,5.0]
[1735674969019,8.18915743,193.76,193.7,8.18915743]
[1735674969832,8.18915743,193.75,193.69,8.18915743]
[1735674970430,8.18915743,193.76,193.7,8.18915743]
[1735674972534,8.0989,193.77,193.61,22.67043428]
[1735674972539,31.96604143,193.75,193.69,8.18915743]
[1735674972735,31.96604143,193.75,193.68,8.18915743]
[1735674972908,8.18915743,193.74,193.68,8.18915743]
[1735674973330,23.776884,193.73,193.67,8.18915743]
[1735674973534,8.18915743,193.72,193.63,12.9112]
[1735674973739,8.18915743,193.71,193.63,12.9112]
[1735674973919,8.18915743,193.71,193.65,8.18915743]
[1735674974124,8.18915743,193.72,193.65,8.18915743]
[1735674974317,8.18915743,193.72,193.66,8.18915743]
[1735674975030,23.776884,193.76,193.66,8.18915743]
[1735674975337,8.18915743,193.73,193.67,8.18915743]
[1735674978437,8.18915743,193.74,193.67,8.18915743]
[1735674978645,8.18915743,193.74,193.68,8.18915743]
[1735674979909,8.18915743,193.74,193.65,12.9094]
[1735674979910,8.18915743,193.74,193.67,8.18915743]
[1735674981015,8.18915743,193.73,193.67,8.18915743]
[1735674981216,8.18915743,193.73,193.66,8.18915743]
[1735674984245,23.776884,193.72,193.67,8.18915743]
[1735674984460,31.96604143,193.74,193.67,8.18915743]
[1735674986549,8.18915743,193.75,193.69,8.18915743]
[1735674987155,23.776884,193.74,193.69,8.18915743]
[1735674989250,23.776884,193.74,193.67,12.9085]
[1735674989454,31.96604143,193.74,193.67,21.09765743]
[1735674989955,23.776884,193.74,193.68,8.18915743]
[1735674990333,8.18915743,193.75,193.69,8.18915743]
[1735674999368,1.5597,193.77,193.71,8.18915743]
[1735674999658,8.18915743,193.79,193.73,8.18915743]
[1735675001445,15.33670462,193.82,193.75,8.18915743]
[1735675001757,23.776884,193.8,193.75,8.18915743]
[1735675001959,8.18915743,193.8,193.74,8.18915743]
[1735675002564,8.18915743,193.8,193.73,8.18915743]
[1735675002766,8.18915743,193.8,193.74,8.18915743]
[1735675004366,8.18915743,193.8,193.73,8.18915743]
[1735675005466,8.18915743,193.8,193.72,32.9049]
[1735675005761,8.18915743,193.79,193.72,41.09405743]
[1735675007084,8.18915743,193.8,193.73,8.18915743]
[1735675013552,8.18915743,193.8,193.74,8.18915743]
[1735675014666,8.18915743,193.8,193.73,8.18915743]
[1735675017966,8.18915743,193.78,193.72,12.9049]
[1735675018275,31.96604143,193.76,193.69,29.21713471]
[1735675018656,8.18915743,193.75,193.69,21.02797728]
[1735675018858,8.18915743,193.75,193.69,12.9068]
[1735675019591,8.18915743,193.73,193.68,8.12117728]
[1735675020068,9.79485743,193.75,193.68,16.31033471]
[1735675020277,31.96604143,193.74,193.68,8.12117728]
[1735675020461,8.18915743,193.73,193.68,8.12117728]
[1735675020661,8.18915743,193.72,193.68,8.12117728]
[1735675021049,8.18915743,193.71,193.68,8.12117728]
[1735675021571,8.18915743,193.71,193.65,8.18915743]
[1735675021947,23.776884,193.74,193.65,8.18915743]
[1735675022147,8.18915743,193.71,193.65,8.18915743]
[1735675024064,23.776884,193.71,193.65,8.18915743]
[1735675024672,23.776884,193.71,193.66,8.18915743]
[1735675025174,23.276884,193.71,193.66,8.18915743]
[1735675025972,8.18915743,193.71,193.65,8.18915743]
[1735675029563,23.776884,193.74,193.66,8.18915743]
[1735675029769,23.776884,193.71,193.66,8.18915743]
[1735675032979,1.6057,193.75,193.67,8.18915743]
[1735675033181,8.18915743,193.74,193.68,8.18915743]
[1735675033358,23.776884,193.73,193.68,8.18915743]
[1735675035086,8.18915743,193.77,193.71,8.18915743]
[1735675035495,8.18915743,193.77,193.7,8.18915743]
[1735675035869,8.18915743,193.79,193.72,8.18915743]
[1735675036196,9.79485743,193.8,193.73,8.18915743]
[1735675036368,23.776884,193.79,193.73,8.18915743]
[1735675037108,31.96604143,193.79,193.73,8.18915743]
[1735675038367,31.96604143,193.79,193.72,8.18915743]
[1735675040682,8.18915743,193.78,193.72,8.18915743]
[1735675041098,23.776884,193.79,193.71,12.9056]
[1735675041099,8.18915743,193.77,193.71,12.9056]
[1735675044294,8.18915743,193.75,193.69,8.18915743]
[1735675044505,8.18915743,193.76,193.69,8.18915743]
[1735675044693,8.18915743,193.77,193.7,8.18915743]
[1735675045876,23.776884,193.77,193.71,8.18915743]
[1735675046799,23.776884,193.79,193.71,8.18915743]
[1735675047000,23.776884,193.77,193.71,8.18915743]
[1735675047406,31.96604143,193.79,193.72,8.18915743]
[1735675047733,23.776884,193.77,193.71,8.18915743]
[1735675048178,8.18915743,193.77,193.7,8.18915743]
[1735675048628,23.776884,193.77,193.71,8.18915743]
[1735675048799,31.96604143,193.79,193.72,8.18915743]
[1735675050977,23.776884,193.79,193.74,8.18915743]
[1735675051189,23.776884,193.79,193.73,8.18915743]
[1735675053908,31.96604143,193.79,193.72,8.18915743]
[1735675054297,23.776884,193.79,193.73,8.18915743]
[1735675056600,1.5805,193.84,193.75,8.18915743]
[1735675056909,8.18915743,193.83,193.76,8.18915743]
[1735675057495,23.776884,193.82,193.76,8.18915743]
[1735675058412,23.776884,193.82,193.76,21.09155743]
[1735675059518,8.18915743,193.85,193.78,8.18915743]
[1735675060697,8.18915743,193.85,193.78,21.09025743]
[1735675062710,23.776884,193.85,193.79,8.18915743]
[1735675065318,8.18915743,193.85,193.78,8.18915743]
[1735675067125,8.18915743,193.84,193.77,21.09055743]
[1735675073023,8.18915743,193.85,193.78,8.18915743]
[1735675076008,8.18915743,193.85,193.79,8.18915743]
[1735675076207,8.18915743,193.85,193.78,8.18915743]
[1735675077710,8.18915743,193.87,193.8,8.18915743]
[1735675077910,23.776884,193.86,193.8,8.18915743]
[1735675079225,8.18915743,193.86,193.79,8.18915743]
[1735675080836,8.18915743,193.83,193.78,1.5929]
[1735675081335,8.18915743,193.84,193.78,1.5929]
[1735675082333,8.18915743,193.84,193.78,9.78205743]
[1735675082930,1.5805,193.89,193.78,1.5929]
[1735675083129,8.18915743,193.89,193.83,8.18915743]
[1735675083337,8.18915743,193.9,193.84,8.18915743]
[1735675083635,8.18915743,193.91,193.84,8.18915743]
[1735675084422,8.18915743,193.92,193.85,8.18915743]
[1735675084629,8.18915743,193.94,193.87,8.18915743]
[1735675086028,8.18915743,193.94,193.88,8.18915743]
[1735675086332,23.776884,193.97,193.88,8.18915743]
[1735675086531,8.18915743,193.95,193.88,8.18915743]
[1735675087540,8.18915743,193.97,193.9,8.18915743]
[1735675088846,1.6023,194.02,193.93,8.18915743]
[1735675089051,8.18915743,194.0,193.93,8.18915743]
[1735675089409,23.776884,193.99,193.93,8.18915743]
[1735675090151,14.36047326,194.06,193.95,8.18915743]
[1735675090435,8.18915743,194.02,193.95,8.18915743]
[1735675090643,23.776884,194.02,193.96,8.18915743]
[1735675091424,8.18915743,194.03,193.96,8.18915743]
[1735675093157,23.776884,194.05,193.96,8.18915743]
[1735675093450,8.18915743,194.03,193.96,8.18915743]
[1735675095731,8.18915743,194.02,193.96,8.18915743]
[1735675095936,8.18915743,193.98,193.93,8.0562]
[1735675096137,8.18915743,193.98,193.93,1.5742]
[1735675096311,8.18915743,193.96,193.89,8.18915743]
[1735675097340,1.5121,194.01,193.88,15.87475743]
[1735675097341,8.18915743,193.95,193.88,15.87475743]
[1735675098635,8.18915743,193.94,193.88,1.5094]
[1735675099054,8.18915743,193.93,193.86,21.08445743]
[1735675100145,8.18915743,193.92,193.83,20.5729]
[1735675100320,8.18915743,193.92,193.85,8.18915743]
[1735675101030,8.18915743,193.93,193.86,8.18915743]
[1735675101255,23.776884,193.92,193.86,8.18915743]
[1735675102755,8.18915743,193.91,193.85,8.18915743]
[1735675103244,8.18915743,193.92,193.85,8.18915743]
[1735675105129,8.18915743,193.91,193.84,8.18915743]
[1735675105837,8.18915743,193.92,193.85,8.18915743]
[1735675107639,23.776884,193.97,193.84,8.18915743]
[1735675107640,23.776884,193.9,193.84,8.18915743]
[1735675108158,8.18915743,193.9,193.83,28.76205743]
[1735675108749,8.18915743,193.9,193.84,8.18915743]
[1735675108750,23.776884,193.9,193.84,8.18915743]
[1735675110140,23.776884,193.91,193.85,8.18915743]
[1735675110336,23.776884,193.91,193.86,8.18915743]
[1735675110541,23.776884,193.92,193.86,8.18915743]
[1735675114379,8.18915743,193.93,193.86,8.18915743]
[1735675119488,23.776884,193.92,193.86,8.18915743]
[1735675129179,23.776884,193.92,193.87,8.18915743]
[1735675129782,23.776884,193.93,193.87,8.18915743]
[1735675130160,23.776884,193.96,193.88,8.18915743]
[1735675130481,31.96604143,193.94,193.87,8.18915743]
[1735675130883,31.96604143,193.94,193.86,8.18915743]
[1735675134583,31.96604143,193.94,193.87,8.18915743]
[1735675134882,8.18915743,193.95,193.88,8.18915743]
[1735675135081,8.18915743,193.96,193.88,8.18915743]
[1735675135276,8.18915743,193.96,193.89,8.18915743]
[1735675135482,23.776884,193.97,193.91,8.18915743]
[1735675136771,8.18915743,193.97,193.91,8.18915743]
[1735675137687,23.776884,193.97,193.91,8.18915743]
[1735675139885,8.18915743,193.97,193.9,8.18915743]
[1735675140491,23.776884,193.97,193.91,8.18915743]
[1735675140680,8.18915743,193.97,193.9,8.18915743]
[1735675142091,8.18915743,193.97,193.91,8.18915743]
[1735675142390,23.776884,193.97,193.92,8.18915743]
[1735675142895,8.18915743,193.99,193.92,8.18915743]
[1735675146095,23.776884,194.0,193.93,8.18915743]
[1735675146295,3.87886818,194.02,193.97,8.18915743]
[1735675146888,23.776884,194.03,193.97,8.18915743]
[1735675151102,23.776884,194.03,193.98,8.18915743]
[1735675153294,8.18915743,194.03,193.96,8.18915743]
[1735675153811,8.18915743,194.01,193.94,32.8902]
[1735675154105,8.18915743,194.01,193.94,41.07935743]
[1735675154306,8.18915743,194.02,193.95,8.18915743]
[1735675154510,8.18915743,194.03,193.96,8.18915743]
[1735675156310,8.18915743,194.03,193.97,8.18915743]
[1735675158427,23.776884,194.03,193.97,8.18915743]
[1735675162812,8.18915743,194.05,193.98,8.18915743]
[1735675163117,9.86372607,194.06,193.98,8.18915743]
[1735675164419,23.776884,194.05,193.98,8.18915743]
[1735675166201,31.96604143,194.05,193.98,8.18915743]
[1735675167726,0.16886864,194.06,194.0,8.18915743]
[1735675168900,23.94575264,194.06,194.0,8.18915743]
[1735675171620,0.16886864,194.06,194.0,8.18915743]
[1735675171821,0.16886864,194.06,194.01,8.18915743]
[1735675173018,0.16886864,194.06,194.0,8.18915743]
[1735675176110,0.16886864,194.06,194.01,8.18915743]
[1735675179907,0.16886864,194.06,194.02,8.18915743]
[1735675182826,0.16886864,194.06,193.97,21.0568]
[1735675183025,0.16886864,194.06,194.01,8.18915743]
[1735675183612,0.16886864,194.06,194.02,8.18915743]
[1735675184117,0.16886864,194.06,194.03,8.18915743]
[1735675184318,0.16886864,194.06,194.02,8.18915743]
[1735675187516,0.16886864,194.06,194.03,8.18915743]
[1735675189138,0.16886864,194.06,194.04,8.18915743]
[1735675196443,0.16886864,194.06,194.01,20.0]
[1735675196640,0.16886864,194.06,194.05,8.18915743]
[1735675200227,0.16886864,194.06,194.01,12.8857]
[1735675200631,0.16886864,194.06,194.03,8.18915743]
[1735675202151,0.16886864,194.06,193.99,8.12117728]
[1735675202447,0.16886864,194.06,194.02,8.18915743]
[1735675202828,0.16886864,194.06,194.03,8.18915743]
[1735675203244,0.16886864,194.06,194.02,8.18915743]
[1735675203642,0.16886864,194.06,194.03,8.18915743]
[1735675203854,0.16886864,194.06,194.04,8.18915743]
[1735675204526,0.16886864,194.06,194.05,8.18915743]
[1735675206554,6.864e-05,194.06,194.05,8.18915743]
[1735675207544,1.625,194.17,194.09,20.0]
[1735675207726,1.625,194.17,194.11,8.18915743]
[1735675207932,9.81415743,194.17,194.06,12.8826]
[1735675208259,8.18915743,194.15,194.09,8.18915743]
[1735675210250,23.776884,194.14,194.09,8.18915743]
[1735675210447,23.776884,194.14,194.08,8.18915743]
[1735675210844,8.18915743,194.15,194.09,8.18915743]
[1735675211044,1.625,194.17,194.1,8.18915743]
[1735675211247,1.625,194.17,194.12,8.18915743]
[1735675212839,1.625,194.17,194.11,8.18915743]
[1735675213040,9.81415743,194.17,194.1,8.18915743]
[1735675213434,8.18915743,194.15,194.09,8.18915743]
[1735675213853,31.96604143,194.16,194.09,8.18915743]
[1735675215359,1.625,194.17,194.1,8.18915743]
[1735675215661,1.625,194.17,194.12,8.18915743]
[1735675216039,1.625,194.17,194.11,8.18915743]
[1735675216240,31.96604143,194.16,194.07,12.8816]
[1735675216555,8.18915743,194.15,194.08,8.18915743]
[1735675216955,31.96604143,194.14,194.08,8.18915743]
[1735675217158,1.625,194.17,194.07,8.18915743]
[1735675217159,23.776884,194.12,194.07,8.18915743]
[1735675217660,8.18915743,194.14,194.07,8.18915743]
[1735675219552,8.18915743,194.14,194.08,8.18915743]
[1735675219954,23.776884,194.16,194.09,8.18915743]
[1735675220158,8.18915743,194.15,194.09,8.18915743]
[1735675220474,23.776884,194.14,194.09,8.18915743]
[1735675221150,23.776884,194.14,194.08,8.18915743]
[1735675221355,23.776884,194.14,194.09,8.18915743]
[1735675221559,1.625,194.17,194.1,8.18915743]
[1735675221762,1.625,194.17,194.13,8.18915743]
[1735675222954,6.1522,194.2,194.13,8.18915743]
[1735675223162,6.1522,194.2,194.15,8.18915743]
[1735675223469,9.75945743,194.23,194.16,8.18915743]
[1735675224665,23.776884,194.22,194.16,8.18915743]
[1735675225245,31.96604143,194.22,194.15,8.18915743]
[1735675225450,8.18915743,194.21,194.15,8.18915743]
[1735675226371,31.96604143,194.22,194.15,8.18915743]
[1735675229061,8.18915743,194.22,194.15,8.18915743]
[1735675229267,8.18915743,194.25,194.18,8.18915743]
[1735675229474,8.18915743,194.26,194.19,8.18915743]
[1735675229891,23.776884,194.25,194.19,8.18915743]
[1735675230578,31.96604143,194.26,194.19,8.18915743]
[1735675231670,1.6047,194.28,194.21,8.18915743]
[1735675231870,1.6047,194.28,194.23,8.18915743]
[1735675232065,6.18,194.3,194.23,8.18915743]
[1735675232259,8.18915743,194.31,194.24,8.18915743]
[1735675232455,23.776884,194.3,194.24,8.18915743]
[1735675232661,6.08809054,194.36,194.29,8.18915743]
[1735675232662,8.18915743,194.36,194.29,8.18915743]
[1735675232953,8.18915743,194.37,194.3,8.18915743]
[1735675233662,9.79385743,194.38,194.3,8.18915743]
[1735675234458,23.776884,194.37,194.29,20.0]
[1735675234659,31.96604143,194.37,194.3,8.18915743]
[1735675235295,8.18915743,194.4,194.33,8.18915743]
[1735675235480,8.18915743,194.41,194.34,8.18915743]
[1735675235664,1.6047,194.42,194.36,8.18915743]
[1735675236166,9.79385743,194.42,194.35,8.18915743]
[1735675236367,8.18915743,194.41,194.34,8.18915743]
[1735675236894,23.776884,194.41,194.35,8.18915743]
[1735675237266,23.776884,194.41,194.3,32.75662972]
[1735675237267,1.6047,194.42,194.36,8.18915743]
[1735675237481,8.18915743,194.45,194.38,8.18915743]
[1735675237781,9.79385743,194.47,194.4,8.18915743]
[1735675237982,23.776884,194.46,194.4,8.18915743]
[1735675238289,8.18915743,194.46,194.39,8.18915743]
[1735675238586,9.79385743,194.47,194.4,8.18915743]
[1735675239293,23.776884,194.46,194.4,8.18915743]
[1735675240475,14.36915743,194.49,194.42,8.18915743]
[1735675240694,1.6047,194.51,194.35,12.863]
[1735675240695,8.18915743,194.5,194.43,8.18915743]
[1735675241375,31.96604143,194.49,194.42,8.18915743]
[1735675241963,31.96604143,194.5,194.43,8.18915743]
[1735675242873,23.776884,194.5,194.44,8.18915743]
[1735675243466,23.776884,194.5,194.36,11.0215]
[1735675243467,23.776884,194.5,194.45,8.18915743]
[1735675244087,23.776884,194.5,194.44,8.18915743]
[1735675244279,1.6047,194.51,194.45,8.18915743]
[1735675244458,8.18915743,194.53,194.45,8.18915743]
[1735675244663,8.18915743,194.53,194.4,45.61662972]
[1735675244664,8.0699,194.6,194.5,8.18915743]
[1735675244881,8.18915743,194.57,194.5,8.18915743]
[1735675245081,23.776884,194.56,194.5,8.18915743]
[1735675245281,8.18915743,194.57,194.5,8.18915743]
[1735675245663,23.776884,194.56,194.5,8.18915743]
[1735675245859,31.96604143,194.56,194.49,8.18915743]
[1735675246062,8.18915743,194.54,194.42,12.8586]
[1735675246296,8.18915743,194.54,194.47,8.18915743]
[1735675246584,23.776884,194.53,194.47,8.18915743]
[1735675246985,8.18915743,194.54,194.47,8.18915743]
[1735675247485,8.18915743,194.53,194.46,8.18915743]
[1735675247686,8.18915743,194.48,194.38,12.8607]
[1735675247893,8.18915743,194.47,194.4,8.18915743]
[1735675248382,8.18915743,194.47,194.43,20.0]
[1735675249261,8.0699,194.51,194.41,28.18915743]
[1735675249262,8.18915743,194.48,194.41,28.18915743]
[1735675249561,8.18915743,194.47,194.4,8.18915743]
[1735675250172,8.0699,194.51,194.38,8.18915743]
[1735675250173,56.53351372,194.5,194.38,8.18915743]
[1735675250385,12.73787941,194.47,194.41,12.73787941]
[1735675250769,12.73787941,194.48,194.41,12.73787941]
[1735675252595,12.73787941,194.47,194.4,12.73787941]
[1735675253167,12.73787941,194.46,194.39,12.73787941]
[1735675253366,12.73787941,194.46,194.4,12.73787941]
[1735675253575,12.73787941,194.45,194.38,12.73787941]
[1735675253986,12.73787941,194.44,194.37,12.73787941]
[1735675254287,12.73787941,194.45,194.38,12.73787941]
[1735675254686,12.73787941,194.44,194.37,32.73787941]
[1735675255390,23.776884,194.48,194.38,12.73787941]
[1735675255588,12.73787941,194.47,194.4,12.73787941]
[1735675255898,12.73787941,194.46,194.39,12.73787941]
[1735675256597,12.73787941,194.47,194.4,12.73787941]
[1735675257587,23.776884,194.5,194.39,12.73787941]
[1735675257588,12.73787941,194.46,194.39,12.73787941]
[1735675260595,12.73787941,194.45,194.38,12.73787941]
[1735675260794,12.73787941,194.42,194.35,12.73787941]
[1735675261306,12.73787941,194.41,194.34,12.73787941]
[1735675261478,12.73787941,194.41,194.31,14.4643]
[1735675261479,12.73787941,194.4,194.33,12.73787941]
[1735675261679,12.73787941,194.41,194.34,12.73787941]
[1735675261875,12.73787941,194.38,194.32,12.73787941]
[1735675262087,12.73787941,194.38,194.31,12.73787941]
[1735675262303,12.73787941,194.39,194.32,12.73787941]
[1735675262776,12.73787941,194.38,194.31,12.73787941]
[1735675263691,12.73787941,194.37,194.3,32.73787941]
[1735675268721,12.73787941,194.38,194.3,32.73787941]
[1735675269211,12.73787941,194.35,194.3,20.0]
[1735675269432,12.73787941,194.36,194.3,20.0]
[1735675269718,12.73787941,194.37,194.3,32.73787941]
[1735675272118,12.73787941,194.36,194.29,12.73787941]
[1735675272342,8.15936756,194.36,194.29,8.15936756]
[1735675272490,8.15936756,194.37,194.3,8.15936756]
[1735675273221,8.15936756,194.36,194.28,20.0]
[1735675273422,8.15936756,194.36,194.29,8.15936756]
[1735675277801,8.15936756,194.36,194.28,28.15936756]
[1735675277998,8.15936756,194.3,194.23,19.5178]
[1735675278306,1.595,194.35,194.25,8.15936756]
[1735675278307,8.15936756,194.32,194.25,8.15936756]
[1735675278496,1.595,194.35,194.26,8.15936756]
[1735675278706,8.15936756,194.33,194.26,8.15936756]
[1735675279835,8.15936756,194.33,194.27,8.15936756]
[1735675280335,9.75436756,194.35,194.28,8.15936756]
[1735675280513,8.15936756,194.35,194.28,8.15936756]
[1735675280715,20.0,194.38,194.29,8.15936756]
[1735675280915,8.15936756,194.37,194.3,8.15936756]
[1735675281930,8.15936756,194.37,194.29,8.15936756]
[1735675282234,8.15936756,194.36,194.29,8.15936756]
[1735675282418,8.15936756,194.38,194.31,8.15936756]
[1735675282618,9.79216756,194.39,194.32,8.15936756]
[1735675282832,8.15936756,194.4,194.33,8.15936756]
[1735675283044,8.15936756,194.42,194.35,8.15936756]
[1735675283343,8.15936756,194.44,194.37,8.15936756]
[1735675283717,8.15936756,194.43,194.36,8.15936756]
[1735675285231,1.6328,194.49,194.39,8.15936756]
[1735675285419,8.15936756,194.46,194.39,8.15936756]
[1735675285622,8.15936756,194.47,194.4,8.15936756]
[1735675286348,8.15936756,194.45,194.38,8.15936756]
[1735675286839,8.15936756,194.44,194.37,29.77856756]
[1735675287842,8.15936756,194.45,194.38,8.15936756]
[1735675289324,8.15936756,194.46,194.38,31.93625156]
[1735675289542,8.15936756,194.48,194.4,8.15936756]
[1735675289871,8.15936756,194.48,194.41,8.15936756]
[1735675290222,12.73172892,194.49,194.42,12.73172892]
[1735675290420,12.73172892,194.49,194.41,12.73172892]
[1735675290842,12.73172892,194.48,194.4,12.73172892]
[1735675291553,12.73172892,194.47,194.4,12.73172892]
[1735675292435,12.73172892,194.47,194.39,36.50861292]
[1735675292753,12.73172892,194.44,194.38,6.3768]
[1735675292952,12.73172892,194.43,194.38,6.3768]
[1735675293257,12.73172892,194.45,194.38,6.3768]
[1735675293458,12.73172892,194.45,194.38,19.10852892]
[1735675293663,12.73172892,194.46,194.38,19.10852892]
[1735675294162,12.73172892,194.46,194.39,12.73172892]
[1735675294346,12.73172892,194.47,194.4,12.73172892]
[1735675294549,12.73172892,194.46,194.39,12.73172892]
[1735675295138,12.73172892,194.46,194.38,19.10852892]
[1735675296964,12.73172892,194.45,194.38,19.10852892]
[1735675297263,12.73172892,194.46,194.38,19.10852892]
[1735675297634,12.73172892,194.47,194.39,12.73172892]
[1735675300255,12.73172892,194.45,194.38,6.3768]
[1735675304364,12.73172892,194.43,194.38,6.3768]
[1735675305071,12.73172892,194.43,194.39,20.0]
[1735675308069,12.73172892,194.4,194.39,20.0]
[1735675308971,12.73172892,194.41,194.39,20.0]
[1735675309151,12.73172892,194.41,194.36,20.0]
[1735675309774,12.73172892,194.41,194.33,19.26332892]
[1735675310381,12.73172892,194.41,194.37,20.0]
[1735675312281,8.15535608,194.41,194.37,20.0]
[1735675313555,8.15535608,194.39,194.36,20.0]
[1735675313759,8.15535608,194.38,194.36,20.0]
[1735675313966,8.15535608,194.39,194.34,20.0]
[1735675314185,8.15535608,194.39,194.35,20.0]
[1735675317168,8.15535608,194.39,194.34,20.0]
[1735675317876,23.776884,194.46,194.34,20.0]
[1735675318176,8.15535608,194.39,194.34,20.0]
[1735675319185,8.15535608,194.39,194.32,1.5923]
[1735675319186,8.15535608,194.39,194.32,9.74765608]
[1735675319489,7.8434,194.47,194.38,20.0]
[1735675319656,8.15535608,194.43,194.38,20.0]
[1735675320279,8.15535608,194.43,194.39,20.0]
[1735675320462,8.15535608,194.42,194.39,20.0]
[1735675320862,8.15535608,194.42,194.38,20.0]
[1735675321280,8.15535608,194.43,194.39,20.0]
[1735675322385,8.15535608,194.42,194.38,20.0]
[1735675323088,8.15535608,194.43,194.38,20.0]
[1735675323290,8.15535608,194.43,194.36,21.01775608]